[Event "Early-Titled-Tuesday-Blitz-October-17-2023"]
[Site "Chess.com"]
[Date "2023.10.17"]
[Round "7"]
[White "DanyKopy"]
[Black "pirulillo"]
[Result "1-0"]
[WhiteElo "2536"]
[BlackElo "2341"]
[TimeControl "180+1"]
[EndTime "9:22:34 PDT"]
[Termination "DanyKopy won on time"]

1. e4 {[%clk 0:03:00.9]} 1... c5 {[%clk 0:02:59]} 2. Nf3 {[%clk 0:03:00.2]} 2...
e6 {[%clk 0:02:59.4]} 3. g3 {[%clk 0:02:55.2]} 3... d5 {[%clk 0:02:55.9]} 4.
exd5 {[%clk 0:02:54.6]} 4... exd5 {[%clk 0:02:56.5]} 5. d4 {[%clk 0:02:55.2]}
5... Nc6 {[%clk 0:02:53.6]} 6. Bg2 {[%clk 0:02:54.8]} 6... Nf6 {[%clk 0:02:49]}
7. O-O {[%clk 0:02:54.6]} 7... h6 {[%clk 0:02:48.3]} 8. Re1+ {[%clk 0:02:52.5]}
8... Be7 {[%clk 0:02:44.5]} 9. dxc5 {[%clk 0:02:52]} 9... O-O {[%clk 0:02:43.5]}
10. Be3 {[%clk 0:02:38]} 10... Ne4 {[%clk 0:02:39.5]} 11. c4 {[%clk 0:02:22.4]}
11... dxc4 {[%clk 0:02:30.8]} 12. Nbd2 {[%clk 0:01:50.8]} 12... Nxc5 {[%clk
0:02:19.3]} 13. Nxc4 {[%clk 0:01:50.6]} 13... Be6 {[%clk 0:02:19]} 14. Nfe5
{[%clk 0:01:44.9]} 14... Nxe5 {[%clk 0:02:06.4]} 15. Nxe5 {[%clk 0:01:45.8]}
15... Rc8 {[%clk 0:01:46.7]} 16. b4 {[%clk 0:01:38]} 16... Qxd1 {[%clk
0:01:05.2]} 17. Rexd1 {[%clk 0:01:38.9]} 17... Na4 {[%clk 0:01:02.9]} 18. Bxb7
{[%clk 0:01:37]} 18... Rb8 {[%clk 0:00:58.5]} 19. Bf3 {[%clk 0:01:19.1]} 19...
Bf6 {[%clk 0:00:55.3]} 20. Nc6 {[%clk 0:01:09.7]} 20... Bxa1 {[%clk 0:00:50.2]}
21. Nxb8 {[%clk 0:01:09.3]} 21... Rxb8 {[%clk 0:00:50]} 22. Rxa1 {[%clk
0:01:09.4]} 22... Rxb4 {[%clk 0:00:49.4]} 23. Bxa7 {[%clk 0:01:07.4]} 23... Nc3
{[%clk 0:00:46.3]} 24. a3 {[%clk 0:01:02.4]} 24... Ra4 {[%clk 0:00:41.4]} 25.
Bc5 {[%clk 0:01:01.7]} 25... Bd5 {[%clk 0:00:34.4]} 26. Bxd5 {[%clk 0:00:58.4]}
26... Nxd5 {[%clk 0:00:35.3]} 27. Rd1 {[%clk 0:00:54.1]} 27... Nc3 {[%clk
0:00:31.3]} 28. Rd8+ {[%clk 0:00:53.5]} 28... Kh7 {[%clk 0:00:30.7]} 29. Rd7
{[%clk 0:00:52.6]} 29... Kg6 {[%clk 0:00:29.4]} 30. Ra7 {[%clk 0:00:44.8]} 30...
Rc4 {[%clk 0:00:22.9]} 31. Bb4 {[%clk 0:00:40]} 31... Nd5 {[%clk 0:00:21.8]} 32.
Bd6 {[%clk 0:00:21.8]} 32... Rc2 {[%clk 0:00:17.9]} 33. a4 {[%clk 0:00:20.2]}
33... Nc3 {[%clk 0:00:16.6]} 34. a5 {[%clk 0:00:19.6]} 34... Nb5 {[%clk
0:00:16.3]} 35. Ra6 {[%clk 0:00:18.5]} 35... f6 {[%clk 0:00:15.4]} 36. Bf4
{[%clk 0:00:16.2]} 36... Ra2 {[%clk 0:00:15.4]} 37. Ra8 {[%clk 0:00:14.8]} 37...
Kf5 {[%clk 0:00:11.7]} 38. a6 {[%clk 0:00:13.8]} 38... g5 {[%clk 0:00:11.5]} 39.
Bb8 {[%clk 0:00:11.9]} 39... g4 {[%clk 0:00:11.6]} 40. Bf4 {[%clk 0:00:11]}
40... Nd4 {[%clk 0:00:11.8]} 41. h3 {[%clk 0:00:08]} 41... Nf3+ {[%clk
0:00:11.8]} 42. Kg2 {[%clk 0:00:08.2]} 42... h5 {[%clk 0:00:11.8]} 43. hxg4+
{[%clk 0:00:08.1]} 43... hxg4 {[%clk 0:00:11.4]} 44. Rc8 {[%clk 0:00:07.2]}
44... Ra1 {[%clk 0:00:08.1]} 45. Rc5+ {[%clk 0:00:07]} 45... Kg6 {[%clk
0:00:08]} 46. Rc1 {[%clk 0:00:07.2]} 46... Rxa6 {[%clk 0:00:08.1]} 47. Kf1
{[%clk 0:00:07.6]} 47... Ra2 {[%clk 0:00:07.6]} 48. Be3 {[%clk 0:00:07.3]} 48...
f5 {[%clk 0:00:07]} 49. Rc6+ {[%clk 0:00:07.2]} 49... Kf7 {[%clk 0:00:06.9]} 50.
Rc5 {[%clk 0:00:06.4]} 50... Ra1+ {[%clk 0:00:06.9]} 51. Ke2 {[%clk 0:00:06.4]}
51... Re1+ {[%clk 0:00:06.3]} 52. Kd3 {[%clk 0:00:06.7]} 52... Rd1+ {[%clk
0:00:06.5]} 53. Ke2 {[%clk 0:00:06.5]} 53... Re1+ {[%clk 0:00:06.4]} 54. Kd3
{[%clk 0:00:06.9]} 54... Rb1 {[%clk 0:00:06.1]} 55. Rxf5+ {[%clk 0:00:05.8]}
55... Kg6 {[%clk 0:00:06.7]} 56. Rf4 {[%clk 0:00:06]} 56... Rd1+ {[%clk
0:00:07.1]} 57. Kc2 {[%clk 0:00:05.7]} 57... Rf1 {[%clk 0:00:06.5]} 58. Rxg4+
{[%clk 0:00:05.8]} 58... Kh5 {[%clk 0:00:07.1]} 59. Rf4 {[%clk 0:00:06.1]} 59...
Ne1+ {[%clk 0:00:07.7]} 60. Kd2 {[%clk 0:00:05.9]} 60... Ng2 {[%clk 0:00:08.2]}
61. Rf5+ {[%clk 0:00:06.2]} 61... Kg4 {[%clk 0:00:08.2]} 62. Rf8 {[%clk
0:00:06.3]} 62... Nxe3 {[%clk 0:00:07.6]} 63. Kxe3 {[%clk 0:00:07.2]} 63... Re1+
{[%clk 0:00:07.8]} 64. Kd2 {[%clk 0:00:07.5]} 64... Re6 {[%clk 0:00:04.9]} 65.
Kd3 {[%clk 0:00:07.3]} 65... Re7 {[%clk 0:00:03.7]} 66. Rf4+ {[%clk 0:00:07.1]}
66... Kg5 {[%clk 0:00:03.5]} 67. Re4 {[%clk 0:00:07.6]} 67... Rd7+ {[%clk
0:00:03.2]} 68. Ke3 {[%clk 0:00:08]} 68... Ra7 {[%clk 0:00:03.4]} 69. Re5+
{[%clk 0:00:08]} 69... Kg4 {[%clk 0:00:03.4]} 70. Re4+ {[%clk 0:00:08.6]} 70...
Kg5 {[%clk 0:00:03.5]} 71. Kf3 {[%clk 0:00:08.7]} 71... Ra3+ {[%clk 0:00:02.5]}
72. Re3 {[%clk 0:00:09.1]} 1-0

[Event "Early-Titled-Tuesday-Blitz-October-17-2023"]
[Site "Chess.com"]
[Date "2023.10.17"]
[Round "7"]
[White "ErikRonka"]
[Black "Kirill_Klukin"]
[Result "0-1"]
[WhiteElo "2499"]
[BlackElo "2670"]
[TimeControl "180+1"]
[EndTime "9:22:48 PDT"]
[Termination "Kirill_Klukin won by checkmate"]

1. e4 {[%clk 0:03:00.9]} 1... c5 {[%clk 0:02:59.9]} 2. Nf3 {[%clk 0:03:01.6]}
2... g6 {[%clk 0:03:00]} 3. d4 {[%clk 0:03:02]} 3... cxd4 {[%clk 0:03:00.5]} 4.
Nxd4 {[%clk 0:03:02.9]} 4... Bg7 {[%clk 0:03:00.9]} 5. Nc3 {[%clk 0:03:03.6]}
5... Nc6 {[%clk 0:03:01.5]} 6. Be3 {[%clk 0:03:04.3]} 6... Nf6 {[%clk
0:03:02.1]} 7. Bc4 {[%clk 0:03:05]} 7... O-O {[%clk 0:03:02.7]} 8. Bb3 {[%clk
0:03:05.6]} 8... Re8 {[%clk 0:03:03.2]} 9. h4 {[%clk 0:03:05.1]} 9... e6 {[%clk
0:03:01.5]} 10. h5 {[%clk 0:03:05]} 10... Nxh5 {[%clk 0:02:53.2]} 11. Qd2 {[%clk
0:03:00.1]} 11... d5 {[%clk 0:02:43.8]} 12. Nxc6 {[%clk 0:02:55.4]} 12... bxc6
{[%clk 0:02:44]} 13. O-O-O {[%clk 0:02:51.3]} 13... a5 {[%clk 0:02:26.1]} 14. a4
{[%clk 0:02:41.3]} 14... Nf6 {[%clk 0:02:07.9]} 15. f3 {[%clk 0:02:35.8]} 15...
Rb8 {[%clk 0:02:00.6]} 16. g4 {[%clk 0:02:30.6]} 16... e5 {[%clk 0:01:10]} 17.
g5 {[%clk 0:02:20]} 17... Nh5 {[%clk 0:01:03]} 18. exd5 {[%clk 0:02:14.9]} 18...
cxd5 {[%clk 0:01:01.2]} 19. Bxd5 {[%clk 0:01:56]} 19... Be6 {[%clk 0:01:00.6]}
20. Bxe6 {[%clk 0:01:22.3]} 20... Qxd2+ {[%clk 0:01:00.1]} 21. Rxd2 {[%clk
0:01:23.2]} 21... Rxe6 {[%clk 0:01:00.6]} 22. Ne4 {[%clk 0:01:23.8]} 22... f5
{[%clk 0:00:20.2]} 23. gxf6 {[%clk 0:01:21.4]} 23... Nxf6 {[%clk 0:00:20.6]} 24.
Ng5 {[%clk 0:00:58.4]} 24... Rc6 {[%clk 0:00:20.5]} 25. Rhd1 {[%clk 0:00:58.7]}
25... Bf8 {[%clk 0:00:14.2]} 26. Rd8 {[%clk 0:00:24.9]} 26... Rcc8 {[%clk
0:00:14.4]} 27. Rxc8 {[%clk 0:00:21.5]} 27... Rxc8 {[%clk 0:00:15.3]} 28. Ne6
{[%clk 0:00:22.3]} 28... Kf7 {[%clk 0:00:14.6]} 29. Ng5+ {[%clk 0:00:11.6]}
29... Kg8 {[%clk 0:00:14.2]} 30. Ne6 {[%clk 0:00:11.7]} 30... Rc6 {[%clk
0:00:14]} 31. Nd8 {[%clk 0:00:08.6]} 31... Ra6 {[%clk 0:00:07]} 32. c3 {[%clk
0:00:05.2]} 32... Be7 {[%clk 0:00:07.3]} 33. Nb7 {[%clk 0:00:04.4]} 33... Kf7
{[%clk 0:00:08.1]} 34. Nc5 {[%clk 0:00:04.3]} 34... Rc6 {[%clk 0:00:08]} 35. Nd3
{[%clk 0:00:04.5]} 35... Ke6 {[%clk 0:00:07.7]} 36. Kb1 {[%clk 0:00:04.6]} 36...
Nd5 {[%clk 0:00:08]} 37. Bc1 {[%clk 0:00:04.7]} 37... h5 {[%clk 0:00:08.6]} 38.
Rg1 {[%clk 0:00:04.8]} 38... Kf5 {[%clk 0:00:07.3]} 39. Nf2 {[%clk 0:00:05.1]}
39... Nf4 {[%clk 0:00:07.5]} 40. Ne4 {[%clk 0:00:04.7]} 40... g5 {[%clk
0:00:08]} 41. Ng3+ {[%clk 0:00:03.8]} 41... Kg6 {[%clk 0:00:08.5]} 42. Rh1
{[%clk 0:00:04.5]} 42... h4 {[%clk 0:00:08.6]} 43. Ne4 {[%clk 0:00:05.2]} 43...
Rc8 {[%clk 0:00:07]} 44. Kc2 {[%clk 0:00:05.2]} 44... Rh8 {[%clk 0:00:07.4]} 45.
Rg1 {[%clk 0:00:05.4]} 45... h3 {[%clk 0:00:07.2]} 46. Rh1 {[%clk 0:00:05.7]}
46... Kf5 {[%clk 0:00:07.7]} 47. Ng3+ {[%clk 0:00:05.6]} 47... Ke6 {[%clk
0:00:08.1]} 48. Be3 {[%clk 0:00:06]} 48... Nd5 {[%clk 0:00:07.8]} 49. Bd2 {[%clk
0:00:06.2]} 49... Nf4 {[%clk 0:00:06.2]} 50. Nf1 {[%clk 0:00:06.4]} 50... Kf5
{[%clk 0:00:06]} 51. Nh2 {[%clk 0:00:06.6]} 51... e4 {[%clk 0:00:05.9]} 52.
fxe4+ {[%clk 0:00:06.6]} 52... Kxe4 {[%clk 0:00:06.8]} 53. Ng4 {[%clk
0:00:06.5]} 53... Kf5 {[%clk 0:00:07]} 54. Nf2 {[%clk 0:00:06.8]} 54... Bd6
{[%clk 0:00:06.8]} 55. Bxf4 {[%clk 0:00:05.7]} 55... Bxf4 {[%clk 0:00:07.3]} 56.
Rxh3 {[%clk 0:00:06.2]} 56... Rxh3 {[%clk 0:00:07.5]} 57. Nxh3 {[%clk
0:00:07.1]} 57... Be3 {[%clk 0:00:08.3]} 58. Kd3 {[%clk 0:00:05.6]} 58... Bc1
{[%clk 0:00:05.9]} 59. b4 {[%clk 0:00:03.4]} 59... g4 {[%clk 0:00:06.2]} 60. Ng1
{[%clk 0:00:03.5]} 60... axb4 {[%clk 0:00:06.4]} 61. cxb4 {[%clk 0:00:03.8]}
61... Ba3 {[%clk 0:00:06.7]} 62. b5 {[%clk 0:00:03.6]} 62... Bc5 {[%clk
0:00:07.3]} 63. Ne2 {[%clk 0:00:04.3]} 63... Bb6 {[%clk 0:00:07.3]} 64. Kc4
{[%clk 0:00:04.7]} 64... Ke4 {[%clk 0:00:07.6]} 65. Ng3+ {[%clk 0:00:03.9]}
65... Kf3 {[%clk 0:00:08]} 66. Nf5 {[%clk 0:00:03.7]} 66... Kf4 {[%clk
0:00:07.8]} 67. Nh4 {[%clk 0:00:03.6]} 67... g3 {[%clk 0:00:06.7]} 68. Kd5
{[%clk 0:00:03]} 68... Bd8 {[%clk 0:00:07.2]} 69. Ng2+ {[%clk 0:00:03.2]} 69...
Kf3 {[%clk 0:00:07.8]} 70. Ne1+ {[%clk 0:00:03.8]} 70... Kf2 {[%clk 0:00:08.4]}
71. Nd3+ {[%clk 0:00:03.7]} 71... Ke3 {[%clk 0:00:08.2]} 72. Ne5 {[%clk
0:00:03.2]} 72... g2 {[%clk 0:00:07.9]} 73. Nc4+ {[%clk 0:00:03.2]} 73... Ke2
{[%clk 0:00:07.2]} 74. Kd6 {[%clk 0:00:01.7]} 74... g1=Q {[%clk 0:00:07.6]} 75.
Kd7 {[%clk 0:00:02.4]} 75... Qg4+ {[%clk 0:00:07.7]} 76. Kc6 {[%clk 0:00:02.5]}
76... Qxc4+ {[%clk 0:00:08.4]} 77. Kb7 {[%clk 0:00:02.9]} 77... Qxa4 {[%clk
0:00:08.8]} 78. b6 {[%clk 0:00:02.9]} 78... Qa5 {[%clk 0:00:08]} 79. Kc8 {[%clk
0:00:03.8]} 79... Qxb6 {[%clk 0:00:08]} 80. Kd7 {[%clk 0:00:04.1]} 80... Qc7+
{[%clk 0:00:08.5]} 81. Ke8 {[%clk 0:00:04.4]} 81... Qe7# {[%clk 0:00:08.9]} 0-1

[Event "Early-Titled-Tuesday-Blitz-October-17-2023"]
[Site "Chess.com"]
[Date "2023.10.17"]
[Round "7"]
[White "vladgoncharov"]
[Black "djokovic74"]
[Result "0-1"]
[WhiteElo "2565"]
[BlackElo "2738"]
[TimeControl "180+1"]
[EndTime "9:23:14 PDT"]
[Termination "djokovic74 won by resignation"]

1. d4 {[%clk 0:03:00.9]} 1... e6 {[%clk 0:02:59.8]} 2. c4 {[%clk 0:02:59.2]}
2... Nf6 {[%clk 0:03:00.2]} 3. Nc3 {[%clk 0:02:57.6]} 3... Bb4 {[%clk
0:03:00.6]} 4. e3 {[%clk 0:02:57.4]} 4... O-O {[%clk 0:02:59.8]} 5. Bd3 {[%clk
0:02:57.1]} 5... b6 {[%clk 0:03:00]} 6. Ne2 {[%clk 0:02:56.6]} 6... d5 {[%clk
0:03:00.1]} 7. O-O {[%clk 0:02:56.1]} 7... Bb7 {[%clk 0:02:59.7]} 8. a3 {[%clk
0:02:54]} 8... Be7 {[%clk 0:02:59.3]} 9. Ng3 {[%clk 0:02:52.1]} 9... Re8 {[%clk
0:02:58.8]} 10. cxd5 {[%clk 0:02:47.1]} 10... exd5 {[%clk 0:02:59.2]} 11. b4
{[%clk 0:02:42.9]} 11... Nbd7 {[%clk 0:02:55.8]} 12. Bb2 {[%clk 0:02:42.1]}
12... c5 {[%clk 0:02:44.3]} 13. dxc5 {[%clk 0:02:38.5]} 13... bxc5 {[%clk
0:02:44.2]} 14. Nf5 {[%clk 0:02:00.7]} 14... Bf8 {[%clk 0:02:35.3]} 15. bxc5
{[%clk 0:02:00.6]} 15... Nxc5 {[%clk 0:02:35.5]} 16. Bb5 {[%clk 0:02:00.7]}
16... Re5 {[%clk 0:02:27.4]} 17. Nd4 {[%clk 0:01:47.1]} 17... Bd6 {[%clk
0:02:08.4]} 18. h3 {[%clk 0:01:41.8]} 18... Rg5 {[%clk 0:01:46.5]} 19. f4 {[%clk
0:01:33.8]} 19... Rg6 {[%clk 0:01:21.8]} 20. Qe2 {[%clk 0:01:23.4]} 20... Nfe4
{[%clk 0:01:18.6]} 21. Nxe4 {[%clk 0:01:20.7]} 21... Nxe4 {[%clk 0:01:19.1]} 22.
Rf3 {[%clk 0:01:06.7]} 22... Rc8 {[%clk 0:01:06.2]} 23. Bd3 {[%clk 0:01:05.8]}
23... Bb8 {[%clk 0:00:54.2]} 24. Kh1 {[%clk 0:01:01.6]} 24... Qd7 {[%clk
0:00:53.7]} 25. Kh2 {[%clk 0:00:57.1]} 25... Rb6 {[%clk 0:00:47.9]} 26. Rc1
{[%clk 0:00:49.2]} 26... Rxc1 {[%clk 0:00:46.3]} 27. Bxc1 {[%clk 0:00:48]} 27...
f6 {[%clk 0:00:43]} 28. Qc2 {[%clk 0:00:45.1]} 28... Bd6 {[%clk 0:00:39.2]} 29.
Bxe4 {[%clk 0:00:40.9]} 29... dxe4 {[%clk 0:00:39.6]} 30. Rf2 {[%clk 0:00:41.3]}
30... Bd5 {[%clk 0:00:36.2]} 31. Rd2 {[%clk 0:00:39.1]} 31... Bb8 {[%clk
0:00:25.2]} 32. Ne2 {[%clk 0:00:34.8]} 32... Qc6 {[%clk 0:00:23.4]} 33. Qxc6
{[%clk 0:00:30]} 33... Bxc6 {[%clk 0:00:23.6]} 34. Rd8+ {[%clk 0:00:30]} 34...
Kf7 {[%clk 0:00:24.1]} 35. Bd2 {[%clk 0:00:28.1]} 35... Bc7 {[%clk 0:00:16.5]}
36. Rc8 {[%clk 0:00:27.6]} 36... Bd6 {[%clk 0:00:17]} 37. Bb4 {[%clk 0:00:26.3]}
37... Bd7 {[%clk 0:00:11.4]} 38. Rd8 {[%clk 0:00:17.1]} 38... Ke7 {[%clk
0:00:11.9]} 39. Ra8 {[%clk 0:00:16.1]} 39... Bxb4 {[%clk 0:00:11]} 40. axb4
{[%clk 0:00:16.2]} 40... Rxb4 {[%clk 0:00:11.7]} 41. Rxa7 {[%clk 0:00:15.8]}
41... Rb3 {[%clk 0:00:12.4]} 42. Nd4 {[%clk 0:00:13.8]} 42... Rd3 {[%clk
0:00:09.6]} 43. Kg1 {[%clk 0:00:12]} 43... Kd6 {[%clk 0:00:07.6]} 44. Kf2 {[%clk
0:00:12.1]} 44... Rd2+ {[%clk 0:00:08.1]} 45. Kf1 {[%clk 0:00:11.5]} 45... Rd3
{[%clk 0:00:07.1]} 46. Ra6+ {[%clk 0:00:11.3]} 46... Kc7 {[%clk 0:00:05.8]} 47.
Ke2 {[%clk 0:00:11.2]} 47... Rxd4 {[%clk 0:00:05]} 48. Ra7+ {[%clk 0:00:11.4]}
48... Kb6 {[%clk 0:00:05.5]} 49. Ra8 {[%clk 0:00:08.9]} 49... Bb5+ {[%clk
0:00:04.1]} 50. Kf2 {[%clk 0:00:08.5]} 50... Rd2+ {[%clk 0:00:04.4]} 51. Kg3
{[%clk 0:00:08.8]} 51... Bf1 {[%clk 0:00:04.6]} 52. Rb8+ {[%clk 0:00:07.8]}
52... Kc7 {[%clk 0:00:04.9]} 53. Rf8 {[%clk 0:00:07.6]} 53... Rxg2+ {[%clk
0:00:05]} 54. Kh4 {[%clk 0:00:08.5]} 54... Rg6 {[%clk 0:00:03.3]} 55. f5 {[%clk
0:00:07.9]} 55... Rh6+ {[%clk 0:00:03.6]} 56. Kg3 {[%clk 0:00:07.7]} 56... Rxh3+
{[%clk 0:00:03.4]} 57. Kf4 {[%clk 0:00:08.6]} 57... Bd3 {[%clk 0:00:02.9]} 58.
Rf7+ {[%clk 0:00:08.4]} 58... Kb6 {[%clk 0:00:03.1]} 59. Rxg7 {[%clk 0:00:08.9]}
59... Rf3+ {[%clk 0:00:02.9]} 60. Kg4 {[%clk 0:00:09.5]} 60... Rxe3 {[%clk
0:00:03]} 61. Rxh7 {[%clk 0:00:10.4]} 61... Re1 {[%clk 0:00:02.2]} 62. Rh6
{[%clk 0:00:09.2]} 62... Kc5 {[%clk 0:00:02.3]} 63. Rxf6 {[%clk 0:00:09.4]}
63... Rg1+ {[%clk 0:00:02.4]} 64. Kf4 {[%clk 0:00:09.4]} 64... Rf1+ {[%clk
0:00:03]} 65. Ke3 {[%clk 0:00:09.4]} 65... Rf3+ {[%clk 0:00:03.4]} 66. Kd2
{[%clk 0:00:09.6]} 66... Rf2+ {[%clk 0:00:03.3]} 67. Ke3 {[%clk 0:00:09.4]}
67... Re2+ {[%clk 0:00:03.7]} 68. Kf4 {[%clk 0:00:09.8]} 68... Bc4 {[%clk
0:00:02]} 69. Rf8 {[%clk 0:00:08.7]} 69... Kd4 {[%clk 0:00:01.9]} 70. Rd8+
{[%clk 0:00:08.6]} 70... Bd5 {[%clk 0:00:02.4]} 71. f6 {[%clk 0:00:09]} 71...
Rf2+ {[%clk 0:00:02.8]} 72. Kg3 {[%clk 0:00:09.1]} 72... Rxf6 {[%clk 0:00:02.6]}
73. Re8 {[%clk 0:00:08.4]} 73... e3 {[%clk 0:00:02.2]} 74. Kg4 {[%clk
0:00:08.9]} 74... Rf1 {[%clk 0:00:02.3]} 75. Kg5 {[%clk 0:00:09.8]} 75... Kd3
{[%clk 0:00:02.5]} 76. Re7 {[%clk 0:00:10.7]} 76... e2 {[%clk 0:00:02.9]} 77.
Re5 {[%clk 0:00:11.6]} 77... e1=Q {[%clk 0:00:03.8]} 78. Rxd5+ {[%clk
0:00:12.5]} 78... Ke2 {[%clk 0:00:03.7]} 79. Re5+ {[%clk 0:00:12.5]} 79... Kf2
{[%clk 0:00:04.3]} 80. Rxe1 {[%clk 0:00:13.4]} 80... Rxe1 {[%clk 0:00:04.5]} 81.
Kf4 {[%clk 0:00:14.3]} 81... Re3 {[%clk 0:00:05]} 0-1

[Event "Early-Titled-Tuesday-Blitz-October-17-2023"]
[Site "Chess.com"]
[Date "2023.10.17"]
[Round "7"]
[White "Hrant_ChessMood"]
[Black "WPWPWP-2015"]
[Result "1/2-1/2"]
[WhiteElo "2922"]
[BlackElo "2575"]
[TimeControl "180+1"]
[EndTime "9:23:18 PDT"]
[Termination "Game drawn - insufficient material"]

1. e4 {[%clk 0:02:53.8]} 1... e5 {[%clk 0:02:59.4]} 2. Nf3 {[%clk 0:02:53.5]}
2... Nf6 {[%clk 0:02:59.1]} 3. d4 {[%clk 0:02:51.9]} 3... Nxe4 {[%clk
0:02:58.7]} 4. Bd3 {[%clk 0:02:51]} 4... d5 {[%clk 0:02:58.4]} 5. Nxe5 {[%clk
0:02:51.2]} 5... Nd7 {[%clk 0:02:58.1]} 6. O-O {[%clk 0:02:48.1]} 6... Nxe5
{[%clk 0:02:58.1]} 7. dxe5 {[%clk 0:02:49]} 7... Nc5 {[%clk 0:02:58]} 8. Nc3
{[%clk 0:02:47]} 8... Nxd3 {[%clk 0:02:55.7]} 9. Qxd3 {[%clk 0:02:46.7]} 9... c6
{[%clk 0:02:55]} 10. Qg3 {[%clk 0:02:46.6]} 10... Bf5 {[%clk 0:02:50.3]} 11. f4
{[%clk 0:02:38.4]} 11... g6 {[%clk 0:02:47.4]} 12. Qf2 {[%clk 0:02:35.8]} 12...
d4 {[%clk 0:02:42]} 13. Ne2 {[%clk 0:02:33.1]} 13... Bc5 {[%clk 0:02:31.8]} 14.
c3 {[%clk 0:02:19.5]} 14... d3 {[%clk 0:02:29]} 15. Qxc5 {[%clk 0:02:18.3]}
15... dxe2 {[%clk 0:02:27.8]} 16. Re1 {[%clk 0:02:18.7]} 16... Bd3 {[%clk
0:02:23.4]} 17. Be3 {[%clk 0:02:13.2]} 17... Qd5 {[%clk 0:02:20.7]} 18. Qxd5
{[%clk 0:02:05.8]} 18... cxd5 {[%clk 0:02:20.3]} 19. Bd4 {[%clk 0:02:06.7]}
19... O-O {[%clk 0:02:11.9]} 20. Kf2 {[%clk 0:02:07]} 20... h5 {[%clk
0:02:11.4]} 21. Ke3 {[%clk 0:02:07.3]} 21... Ba6 {[%clk 0:02:08.8]} 22. h3
{[%clk 0:02:07.5]} 22... Rfe8 {[%clk 0:02:01.4]} 23. Kd2 {[%clk 0:02:06.1]}
23... b6 {[%clk 0:01:50.6]} 24. g4 {[%clk 0:02:03.8]} 24... hxg4 {[%clk
0:01:34.3]} 25. hxg4 {[%clk 0:02:04.7]} 25... Kf8 {[%clk 0:01:27.5]} 26. a4
{[%clk 0:02:00.5]} 26... Ke7 {[%clk 0:01:21.7]} 27. a5 {[%clk 0:02:00.1]} 27...
Bc4 {[%clk 0:01:18.7]} 28. axb6 {[%clk 0:01:56.3]} 28... axb6 {[%clk 0:01:18.2]}
29. Bxb6 {[%clk 0:01:57.2]} 29... Rxa1 {[%clk 0:01:13.3]} 30. Rxa1 {[%clk
0:01:56.1]} 30... Ke6 {[%clk 0:01:08.9]} 31. b3 {[%clk 0:01:52.7]} 31... Bxb3
{[%clk 0:01:00.5]} 32. Kxe2 {[%clk 0:01:52.6]} 32... Rh8 {[%clk 0:01:00.4]} 33.
Bd4 {[%clk 0:01:51]} 33... Rh2+ {[%clk 0:00:58.5]} 34. Kf3 {[%clk 0:01:50.8]}
34... Rh3+ {[%clk 0:00:57]} 35. Kg2 {[%clk 0:01:50.3]} 35... Rd3 {[%clk
0:00:53.3]} 36. f5+ {[%clk 0:01:49.1]} 36... gxf5 {[%clk 0:00:52]} 37. Ra6+
{[%clk 0:01:49.8]} 37... Kd7 {[%clk 0:00:52]} 38. gxf5 {[%clk 0:01:50.4]} 38...
Bc2 {[%clk 0:00:39.3]} 39. Ra7+ {[%clk 0:01:43.7]} 39... Ke8 {[%clk 0:00:38.6]}
40. f6 {[%clk 0:01:39.5]} 40... Rd2+ {[%clk 0:00:30.8]} 41. Kg3 {[%clk
0:01:39.8]} 41... Bg6 {[%clk 0:00:25]} 42. Re7+ {[%clk 0:01:26.5]} 42... Kd8
{[%clk 0:00:24.9]} 43. e6 {[%clk 0:01:20.5]} 43... fxe6 {[%clk 0:00:22.9]} 44.
Rg7 {[%clk 0:01:21.4]} 44... Bh5 {[%clk 0:00:13.6]} 45. f7 {[%clk 0:01:17.3]}
45... Bxf7 {[%clk 0:00:10.5]} 46. Rxf7 {[%clk 0:01:18.2]} 46... Re2 {[%clk
0:00:10.8]} 47. Rf2 {[%clk 0:01:15.3]} 47... Re4 {[%clk 0:00:08.9]} 48. Rd2
{[%clk 0:01:08.1]} 48... Kd7 {[%clk 0:00:08.3]} 49. Kf3 {[%clk 0:01:08.4]} 49...
e5 {[%clk 0:00:08.1]} 50. Bf2 {[%clk 0:01:01.1]} 50... Ke6 {[%clk 0:00:08.1]}
51. Re2 {[%clk 0:00:50.8]} 51... Rf4+ {[%clk 0:00:04.6]} 52. Kg3 {[%clk
0:00:51.2]} 52... Kf5 {[%clk 0:00:03.4]} 53. Be1 {[%clk 0:00:26.1]} 53... Rc4
{[%clk 0:00:03.5]} 54. Rf2+ {[%clk 0:00:26.1]} 54... Ke4 {[%clk 0:00:03.5]} 55.
Re2+ {[%clk 0:00:24.5]} 55... Kf5 {[%clk 0:00:03.8]} 56. Rf2+ {[%clk 0:00:20.6]}
56... Ke4 {[%clk 0:00:04.1]} 57. Rh2 {[%clk 0:00:21.3]} 57... d4 {[%clk
0:00:04.1]} 58. cxd4 {[%clk 0:00:17.5]} 58... exd4 {[%clk 0:00:04.4]} 59. Rh8
{[%clk 0:00:17.2]} 59... Kd3 {[%clk 0:00:04.5]} 60. Kf3 {[%clk 0:00:17.4]} 60...
Rc7 {[%clk 0:00:04.5]} 61. Bg3 {[%clk 0:00:17.5]} 61... Rf7+ {[%clk 0:00:04.4]}
62. Bf4 {[%clk 0:00:18.1]} 62... Rd7 {[%clk 0:00:04.5]} 63. Rc8 {[%clk
0:00:18.2]} 63... Rd5 {[%clk 0:00:04.4]} 64. Rc1 {[%clk 0:00:17.3]} 64... Rd7
{[%clk 0:00:04.6]} 65. Rd1+ {[%clk 0:00:17]} 65... Kc2 {[%clk 0:00:04.8]} 66.
Rd2+ {[%clk 0:00:17.5]} 66... Kc3 {[%clk 0:00:04.9]} 67. Rh2 {[%clk 0:00:17.2]}
67... d3 {[%clk 0:00:05.3]} 68. Bd2+ {[%clk 0:00:17]} 68... Kc4 {[%clk
0:00:05.1]} 69. Rh4+ {[%clk 0:00:14.9]} 69... Rd4 {[%clk 0:00:05.1]} 70. Rh8
{[%clk 0:00:14.5]} 70... Rd7 {[%clk 0:00:03.4]} 71. Rc8+ {[%clk 0:00:15.1]}
71... Kd4 {[%clk 0:00:03.1]} 72. Be3+ {[%clk 0:00:13.9]} 72... Ke5 {[%clk
0:00:03.2]} 73. Bf4+ {[%clk 0:00:13.8]} 73... Kd4 {[%clk 0:00:03.3]} 74. Be3+
{[%clk 0:00:14.3]} 74... Ke5 {[%clk 0:00:03.6]} 75. Re8+ {[%clk 0:00:11.4]}
75... Kd5 {[%clk 0:00:03.5]} 76. Kf2 {[%clk 0:00:10.9]} 76... Kc4 {[%clk
0:00:03.4]} 77. Ke1 {[%clk 0:00:10.6]} 77... Kd5 {[%clk 0:00:03.1]} 78. Kd2
{[%clk 0:00:10.6]} 78... Kc6 {[%clk 0:00:03.4]} 79. Re4 {[%clk 0:00:10]} 79...
Rd5 {[%clk 0:00:03.5]} 80. Rh4 {[%clk 0:00:10.6]} 80... Kb5 {[%clk 0:00:03.5]}
81. Bd4 {[%clk 0:00:10.5]} 81... Kc4 {[%clk 0:00:03]} 82. Ke3 {[%clk 0:00:10.5]}
82... d2 {[%clk 0:00:02.6]} 83. Kxd2 {[%clk 0:00:02]} 83... Rxd4+ {[%clk
0:00:02.8]} 84. Rxd4+ {[%clk 0:00:02.7]} 84... Kxd4 {[%clk 0:00:03.3]} 1/2-1/2

[Event "Early-Titled-Tuesday-Blitz-October-17-2023"]
[Site "Chess.com"]
[Date "2023.10.17"]
[Round "8"]
[White "Ramosha"]
[Black "chessfatbear"]
[Result "0-1"]
[WhiteElo "2637"]
[BlackElo "2800"]
[TimeControl "180+1"]
[EndTime "9:26:25 PDT"]
[Termination "chessfatbear won by resignation"]

1. e4 {[%clk 0:03:00.9]} 1... c5 {[%clk 0:02:57]} 2. Nf3 {[%clk 0:03:00.8]} 2...
Nc6 {[%clk 0:02:57.4]} 3. Bb5 {[%clk 0:03:00.8]} 3... g6 {[%clk 0:02:56.4]} 4.
O-O {[%clk 0:03:01.1]} 4... Bg7 {[%clk 0:02:56.4]} 5. Re1 {[%clk 0:02:59.6]}
5... Nf6 {[%clk 0:02:54.4]} 6. Bxc6 {[%clk 0:02:57.1]} 6... dxc6 {[%clk
0:02:54.2]} 7. d3 {[%clk 0:02:54.6]} 7... O-O {[%clk 0:02:54.3]} 8. e5 {[%clk
0:02:54.8]} 8... Nd5 {[%clk 0:02:52.9]} 9. h3 {[%clk 0:02:54.8]} 9... b6 {[%clk
0:02:46.1]} 10. a4 {[%clk 0:02:54]} 10... h6 {[%clk 0:02:45.2]} 11. a5 {[%clk
0:02:52.2]} 11... Rb8 {[%clk 0:02:41.3]} 12. axb6 {[%clk 0:02:50]} 12... axb6
{[%clk 0:02:42.2]} 13. b3 {[%clk 0:02:47.3]} 13... Kh7 {[%clk 0:02:42]} 14. Nbd2
{[%clk 0:02:46.1]} 14... Nc3 {[%clk 0:02:41.5]} 15. Bb2 {[%clk 0:02:37.8]} 15...
Nxd1 {[%clk 0:02:41.3]} 0-1